[Event "Titled Tuesday Blitz November 15 Early 2022"]
[White "Jones, Gawain C B"]
[Black "Ginzburg, Yakov"]
[WhiteFideId "409561"]
[BlackFideId "4157176"]
[WhiteElo "2657"]
[BlackElo "2305"]
[Result "1-0"]
[Round "10"]
[TimeControl "180+1"]
[Date "2022.11.15"]
[WhiteClock "0:00:07"]
[BlackClock "0:00:02"]

1. e4 {[%clk 0:03:00]}  c5 {[%clk 0:02:59]} 2. Nc3 {[%clk 0:03:00]}  e6 {[%clk 0:02:59]} 3. Nf3 {[%clk 0:03:00]}  Nc6 {[%clk 0:02:58]} 4. Bb5 {[%clk 0:03:00]}  g6 {[%clk 0:02:52]} 5. d4 {[%clk 0:02:56]}  cxd4 {[%clk 0:02:51]} 6. Nxd4 {[%clk 0:02:56]}  Bg7 {[%clk 0:02:51]} 7. Be3 {[%clk 0:02:55]}  Nge7 {[%clk 0:02:48]} 8. Nxc6 {[%clk 0:02:53]}  Nxc6 {[%clk 0:02:47]} 9. Bxc6 {[%clk 0:02:34]}  dxc6 {[%clk 0:02:41]} 10. Qxd8+ {[%clk 0:02:33]}  Kxd8 {[%clk 0:02:41]} 11. O-O-O+ {[%clk 0:02:33]}  Kc7 {[%clk 0:02:40]} 12. f4 {[%clk 0:02:18]}  e5 {[%clk 0:02:16]} 13. Bc5 {[%clk 0:02:17]}  Bf8 {[%clk 0:02:04]} 14. Bxf8 {[%clk 0:02:16]}  Rxf8 {[%clk 0:02:03]} 15. fxe5 {[%clk 0:02:16]}  Bg4 {[%clk 0:02:01]} 16. Rd2 {[%clk 0:02:04]}  Rae8 {[%clk 0:01:58]} 17. h3 {[%clk 0:01:54]}  Bc8 {[%clk 0:01:57]} 18. Rf1 {[%clk 0:01:46]}  Rxe5 {[%clk 0:01:57]} 19. Rf6 {[%clk 0:01:37]}  Re6 {[%clk 0:01:50]} 20. Rf4 {[%clk 0:01:29]}  Re5 {[%clk 0:01:43]} 21. h4 {[%clk 0:01:19]}  Be6 {[%clk 0:01:37]} 22. Ne2 {[%clk 0:01:16]}  c5 {[%clk 0:00:49]} 23. Ng1 {[%clk 0:01:13]}  g5 {[%clk 0:00:41]} 24. hxg5 {[%clk 0:01:05]}  Rxg5 {[%clk 0:00:41]} 25. Nf3 {[%clk 0:01:05]}  Rg3 {[%clk 0:00:39]} 26. Rh4 {[%clk 0:00:32]}  Rfg8 {[%clk 0:00:39]} 27. Rxh7 {[%clk 0:00:23]}  Rxg2 {[%clk 0:00:39]} 28. b3 {[%clk 0:00:13]}  Rxd2 {[%clk 0:00:34]} 29. Nxd2 {[%clk 0:00:11]}  Rg2 {[%clk 0:00:33]} 30. Rh5 {[%clk 0:00:07]}  b6 {[%clk 0:00:33]} 31. a4 {[%clk 0:00:07]}  Kd6 {[%clk 0:00:30]} 32. Nb1 {[%clk 0:00:07]}  Bg4 {[%clk 0:00:20]} 33. Rd5+ {[%clk 0:00:07]}  Kc6 {[%clk 0:00:19]} 34. Nc3 {[%clk 0:00:07]}  Be6 {[%clk 0:00:13]} 35. Rd8 {[%clk 0:00:06]}  a6 {[%clk 0:00:13]} 36. Ra8 {[%clk 0:00:05]}  Kb7 {[%clk 0:00:12]} 37. Rh8 {[%clk 0:00:04]}  Kc6 {[%clk 0:00:10]} 38. Rh6 {[%clk 0:00:04]}  b5 {[%clk 0:00:10]} 39. Kb2 {[%clk 0:00:04]}  b4 {[%clk 0:00:10]} 40. Nd5 {[%clk 0:00:04]}  Kd6 {[%clk 0:00:07]} 41. Rh5 {[%clk 0:00:03]}  Re2 {[%clk 0:00:06]} 42. Nf6 {[%clk 0:00:03]}  Ke7 {[%clk 0:00:04]} 43. Ng8+ {[%clk 0:00:02]}  Kf8 {[%clk 0:00:04]} 44. Nf6 {[%clk 0:00:03]}  Ke7 {[%clk 0:00:05]} 45. Rh6 {[%clk 0:00:01]}  Rf2 {[%clk 0:00:04]} 46. Ng8+ {[%clk 0:00:01]}  Kf8 {[%clk 0:00:04]} 47. Rf6 {[%clk 0:00:02]}  Rh2 {[%clk 0:00:03]} 48. Rh6 {[%clk 0:00:02]}  Rg2 {[%clk 0:00:03]} 49. Nf6 {[%clk 0:00:02]}  Kg7 {[%clk 0:00:04]} 50. Rh5 {[%clk 0:00:02]}  Kxf6 {[%clk 0:00:04]} 51. Rxc5 {[%clk 0:00:03]}  Re2 {[%clk 0:00:04]} 52. Rc6 {[%clk 0:00:03]}  Rxe4 {[%clk 0:00:05]} 53. Rxa6 {[%clk 0:00:03]}  Ke5 {[%clk 0:00:05]} 54. Ra5+ {[%clk 0:00:04]}  Kd4 {[%clk 0:00:05]} 55. Rb5 {[%clk 0:00:04]}  Ke3 {[%clk 0:00:06]} 56. a5 {[%clk 0:00:04]}  Rd4 {[%clk 0:00:05]} 57. a6 {[%clk 0:00:05]}  Bd5 {[%clk 0:00:05]} 58. a7 {[%clk 0:00:05]}  Be4 {[%clk 0:00:05]} 59. Rb8 {[%clk 0:00:04]}  f5 {[%clk 0:00:05]} 60. Re8 {[%clk 0:00:04]}  Kd2 {[%clk 0:00:01]} 61. Rxe4 {[%clk 0:00:04]}  fxe4 {[%clk 0:00:02]} 62. a8=Q {[%clk 0:00:05]}  e3 {[%clk 0:00:03]} 63. Qa7 {[%clk 0:00:05]}  Re4 {[%clk 0:00:02]} 64. Qd7+ {[%clk 0:00:05]}  Ke2 {[%clk 0:00:02]} 65. Qd3+ {[%clk 0:00:05]}  Kf3 {[%clk 0:00:02]} 66. Kc1 {[%clk 0:00:05]}  Kf4 {[%clk 0:00:02]} 67. Kd1 {[%clk 0:00:05]}  e2+ {[%clk 0:00:02]} 68. Ke1 {[%clk 0:00:05]}  Ke5 {[%clk 0:00:03]} 69. Qd8 {[%clk 0:00:03]}  Kf4 {[%clk 0:00:03]} 70. Qd6+ {[%clk 0:00:04]}  Ke3 {[%clk 0:00:03]} 71. Qc5+ {[%clk 0:00:03]}  Kf4 {[%clk 0:00:04]} 72. Qd5 {[%clk 0:00:04]}  Ke3 {[%clk 0:00:04]} 73. Qd2+ {[%clk 0:00:04]}  Kf3 {[%clk 0:00:04]} 74. c4 {[%clk 0:00:04]}  bxc3 {[%clk 0:00:04]} 75. Qxc3+ {[%clk 0:00:05]}  Re3 {[%clk 0:00:04]} 76. Qf6+ {[%clk 0:00:05]}  Ke4 {[%clk 0:00:04]} 77. Qd6 {[%clk 0:00:05]}  Rd3 {[%clk 0:00:04]} 78. Qe6+ {[%clk 0:00:05]}  Kd4 {[%clk 0:00:04]} 79. Kxe2 {[%clk 0:00:05]}  Rc3 {[%clk 0:00:04]} 80. Kd2 {[%clk 0:00:06]}  Rd3+ {[%clk 0:00:04]} 81. Kc2 {[%clk 0:00:06]}  Re3 {[%clk 0:00:05]} 82. Qc4+ {[%clk 0:00:06]}  Ke5 {[%clk 0:00:05]} 83. b4 {[%clk 0:00:07]}  Re4 {[%clk 0:00:05]} 84. Qc5+ {[%clk 0:00:07]}  Ke6 {[%clk 0:00:05]} 85. Kb3 {[%clk 0:00:08]}  Kd7 {[%clk 0:00:05]} 86. b5 {[%clk 0:00:08]}  Re6 {[%clk 0:00:06]} 87. Kb4 {[%clk 0:00:08]}  Re4+ {[%clk 0:00:06]} 88. Ka5 {[%clk 0:00:08]}  Re1 {[%clk 0:00:06]} 89. Qc6+ {[%clk 0:00:08]}  Kd8 {[%clk 0:00:06]} 90. Kb6 {[%clk 0:00:08]}  Re6 {[%clk 0:00:06]} 91. Kb7 {[%clk 0:00:07]}  Re7+ {[%clk 0:00:05]} 92. Kb8 {[%clk 0:00:07]}  Rd7 {[%clk 0:00:05]} 93. b6 {[%clk 0:00:07]}  Re7 {[%clk 0:00:02]} 94. Qc7+ {[%clk 0:00:06]}  Ke8 {[%clk 0:00:02]} 95. Qxe7+ {[%clk 0:00:06]}  Kxe7 {[%clk 0:00:02]} 96. Kc7 {[%clk 0:00:07]} 1-0


[Site "https://www.chess.com"]

[Event "Titled Tuesday Blitz November 15 Early 2022"]
[White "Khamdamova, Afruza"]
[Black "Tregubov, Pavel V."]
[WhiteFideId "14210444"]
[BlackFideId "4115341"]
[WhiteElo "2018"]
[BlackElo "2448"]
[Result "0-1"]
[Round "10"]
[TimeControl "180+1"]
[Date "2022.11.16"]
[WhiteClock "0:00:28"]
[BlackClock "0:00:34"]

1. e4 {[%clk 0:03:00]}  c5 {[%clk 0:02:58]} 2. Nf3 {[%clk 0:03:01]}  e6 {[%clk 0:02:59]} 3. d4 {[%clk 0:03:00]}  cxd4 {[%clk 0:02:59]} 4. Nxd4 {[%clk 0:03:01]}  Nc6 {[%clk 0:03:00]} 5. Nc3 {[%clk 0:03:01]}  Nf6 {[%clk 0:03:01]} 6. Nxc6 {[%clk 0:02:56]}  bxc6 {[%clk 0:03:00]} 7. e5 {[%clk 0:02:56]}  Nd5 {[%clk 0:02:59]} 8. Ne4 {[%clk 0:02:53]}  Qc7 {[%clk 0:02:59]} 9. f4 {[%clk 0:02:50]}  Qb6 {[%clk 0:02:59]} 10. c4 {[%clk 0:02:45]}  Bb4+ {[%clk 0:03:00]} 11. Ke2 {[%clk 0:02:37]}  f5 {[%clk 0:02:57]} 12. exf6 {[%clk 0:02:31]}  Nxf6 {[%clk 0:02:55]} 13. Be3 {[%clk 0:02:26]}  Qd8 {[%clk 0:02:27]} 14. Nd6+ {[%clk 0:02:19]}  Bxd6 {[%clk 0:02:28]} 15. Qxd6 {[%clk 0:02:19]}  Bb7 {[%clk 0:02:28]} 16. c5 {[%clk 0:02:09]}  Ba6+ {[%clk 0:02:22]} 17. Kf3 {[%clk 0:02:06]}  Bxf1 {[%clk 0:02:17]} 18. Rhxf1 {[%clk 0:02:06]}  Qb8 {[%clk 0:02:10]} 19. Bd4 {[%clk 0:01:29]}  Qxd6 {[%clk 0:01:58]} 20. cxd6 {[%clk 0:01:29]}  Kf7 {[%clk 0:01:54]} 21. g4 {[%clk 0:01:28]}  Rhb8 {[%clk 0:01:52]} 22. f5 {[%clk 0:01:23]}  exf5 {[%clk 0:01:47]} 23. gxf5 {[%clk 0:01:23]}  Rb5 {[%clk 0:01:46]} 24. Kg3 {[%clk 0:01:17]}  Rd5 {[%clk 0:01:44]} 25. Bxf6 {[%clk 0:01:17]}  Kxf6 {[%clk 0:01:42]} 26. Rad1 {[%clk 0:01:13]}  Rxd1 {[%clk 0:01:38]} 27. Rxd1 {[%clk 0:01:13]}  Re8 {[%clk 0:01:26]} 28. Rd3 {[%clk 0:01:00]}  Re2 {[%clk 0:01:20]} 29. Ra3 {[%clk 0:00:57]}  Kxf5 {[%clk 0:01:20]} 30. Rxa7 {[%clk 0:00:57]}  Ke6 {[%clk 0:01:21]} 31. b4 {[%clk 0:00:56]}  Kxd6 {[%clk 0:01:19]} 32. a4 {[%clk 0:00:53]}  Re3+ {[%clk 0:01:07]} 33. Kf2 {[%clk 0:00:53]}  Rh3 {[%clk 0:01:06]} 34. Kg2 {[%clk 0:00:53]}  Ra3 {[%clk 0:00:57]} 35. a5 {[%clk 0:00:50]}  g5 {[%clk 0:00:53]} 36. Ra8 {[%clk 0:00:48]}  Kd5 {[%clk 0:00:51]} 37. Rh8 {[%clk 0:00:46]}  Kc4 {[%clk 0:00:43]} 38. Rxh7 {[%clk 0:00:46]}  d5 {[%clk 0:00:43]} 39. Rc7 {[%clk 0:00:43]}  Kxb4 {[%clk 0:00:40]} 40. Rxc6 {[%clk 0:00:43]}  Rxa5 {[%clk 0:00:39]} 41. Kg3 {[%clk 0:00:42]}  Rc5 {[%clk 0:00:38]} 42. Rd6 {[%clk 0:00:41]}  Kc3 {[%clk 0:00:38]} 43. Kg4 {[%clk 0:00:40]}  d4 {[%clk 0:00:38]} 44. Kf3 {[%clk 0:00:37]}  d3 {[%clk 0:00:39]} 45. Ke3 {[%clk 0:00:34]}  Re5+ {[%clk 0:00:38]} 46. Kf2 {[%clk 0:00:34]}  d2 {[%clk 0:00:38]} 47. Rc6+ {[%clk 0:00:34]}  Kd3 {[%clk 0:00:34]} 48. Rd6+ {[%clk 0:00:34]}  Kc2 {[%clk 0:00:34]} 49. Rc6+ {[%clk 0:00:35]}  Kd1 {[%clk 0:00:35]} 50. Rc3 {[%clk 0:00:32]}  Rf5+ {[%clk 0:00:34]} 51. Kg2 {[%clk 0:00:29]}  Ke2 {[%clk 0:00:34]} 52. Rc2 {[%clk 0:00:28]}  Ke1 {[%clk 0:00:34]} 0-1


[Site "https://www.chess.com"]

[Event "Titled Tuesday Blitz November 15 Early 2022"]
[White "Kirillov, Dmitry"]
[Black "Buksa, Nataliya"]
[WhiteFideId "34180572"]
[BlackFideId "14123622"]
[WhiteElo "2477"]
[BlackElo "2609"]
[Result "0-1"]
[Round "10"]
[TimeControl "180+1"]
[Date "2022.11.16"]
[WhiteClock "0:00:03"]
[BlackClock "0:00:49"]

1. e4 {[%clk 0:02:58]}  c5 {[%clk 0:02:59]} 2. Nc3 {[%clk 0:02:57]}  Nc6 {[%clk 0:02:59]} 3. f4 {[%clk 0:02:58]}  d6 {[%clk 0:02:58]} 4. Nf3 {[%clk 0:02:58]}  g6 {[%clk 0:02:58]} 5. Bc4 {[%clk 0:02:58]}  Bg7 {[%clk 0:02:58]} 6. d3 {[%clk 0:02:59]}  Nf6 {[%clk 0:02:58]} 7. O-O {[%clk 0:02:59]}  O-O {[%clk 0:02:58]} 8. h3 {[%clk 0:03:00]}  a6 {[%clk 0:02:57]} 9. a4 {[%clk 0:02:59]}  Rb8 {[%clk 0:02:53]} 10. Be3 {[%clk 0:02:53]}  Ne8 {[%clk 0:02:45]} 11. g4 {[%clk 0:02:16]}  Nc7 {[%clk 0:02:42]} 12. f5 {[%clk 0:02:14]}  b5 {[%clk 0:02:42]} 13. Ba2 {[%clk 0:02:10]}  b4 {[%clk 0:02:41]} 14. Nd5 {[%clk 0:02:08]}  Nxd5 {[%clk 0:02:41]} 15. Bxd5 {[%clk 0:02:07]}  Bd7 {[%clk 0:02:36]} 16. Ng5 {[%clk 0:02:02]}  Ne5 {[%clk 0:02:31]} 17. Qe1 {[%clk 0:01:47]}  h6 {[%clk 0:02:18]} 18. Nxf7 {[%clk 0:01:41]}  Nxf7 {[%clk 0:02:17]} 19. fxg6 {[%clk 0:01:40]}  e6 {[%clk 0:02:17]} 20. gxf7+ {[%clk 0:01:40]}  Rxf7 {[%clk 0:02:18]} 21. Rxf7 {[%clk 0:01:28]}  Kxf7 {[%clk 0:02:19]} 22. Bb3 {[%clk 0:01:27]}  Kg6 {[%clk 0:02:03]} 23. Qg3 {[%clk 0:01:12]}  Qe7 {[%clk 0:02:03]} 24. Rf1 {[%clk 0:01:09]}  Rf8 {[%clk 0:02:01]} 25. Rxf8 {[%clk 0:00:47]}  Qxf8 {[%clk 0:02:00]} 26. h4 {[%clk 0:00:46]}  Bxb2 {[%clk 0:01:59]} 27. h5+ {[%clk 0:00:35]}  Kh7 {[%clk 0:01:57]} 28. Bf4 {[%clk 0:00:21]}  Bd4+ {[%clk 0:01:53]} 29. Kg2 {[%clk 0:00:20]}  e5 {[%clk 0:01:51]} 30. Bd2 {[%clk 0:00:19]}  Qg7 {[%clk 0:01:35]} 31. g5 {[%clk 0:00:13]}  hxg5 {[%clk 0:01:35]} 32. Bxg5 {[%clk 0:00:14]}  Bc3 {[%clk 0:01:31]} 33. Be3 {[%clk 0:00:08]}  Qxg3+ {[%clk 0:01:25]} 34. Kxg3 {[%clk 0:00:09]}  Be1+ {[%clk 0:01:23]} 35. Kg2 {[%clk 0:00:08]}  a5 {[%clk 0:01:22]} 36. Bg5 {[%clk 0:00:04]}  Bc3 {[%clk 0:01:03]} 37. Bd8 {[%clk 0:00:04]}  Bc6 {[%clk 0:01:01]} 38. Bxa5 {[%clk 0:00:05]}  c4 {[%clk 0:01:02]} 39. Bxc4 {[%clk 0:00:03]}  Bxa4 {[%clk 0:01:02]} 40. Bc7 {[%clk 0:00:03]}  Bxc2 {[%clk 0:01:02]} 41. Bxd6 {[%clk 0:00:02]}  b3 {[%clk 0:01:01]} 42. Ba3 {[%clk 0:00:03]}  b2 {[%clk 0:01:00]} 43. Bxb2 {[%clk 0:00:03]}  Bxb2 {[%clk 0:01:00]} 44. Kf3 {[%clk 0:00:04]}  Bd1+ {[%clk 0:00:56]} 45. Ke3 {[%clk 0:00:03]}  Kh6 {[%clk 0:00:56]} 46. Kd2 {[%clk 0:00:04]}  Bxh5 {[%clk 0:00:56]} 47. Bd5 {[%clk 0:00:04]}  Bd4 {[%clk 0:00:56]} 48. Kc2 {[%clk 0:00:04]}  Kg5 {[%clk 0:00:57]} 49. Kd2 {[%clk 0:00:04]}  Kf4 {[%clk 0:00:57]} 50. Kc2 {[%clk 0:00:05]}  Ke3 {[%clk 0:00:58]} 51. Bc4 {[%clk 0:00:06]}  Be2 {[%clk 0:00:58]} 52. Bb5 {[%clk 0:00:06]}  Bb6 {[%clk 0:00:57]} 53. Bc4 {[%clk 0:00:06]}  Ba5 {[%clk 0:00:55]} 54. Bb5 {[%clk 0:00:06]}  Kf2 {[%clk 0:00:56]} 55. Bc4 {[%clk 0:00:06]}  Ke1 {[%clk 0:00:56]} 56. Bb5 {[%clk 0:00:04]}  Bd1+ {[%clk 0:00:56]} 57. Kc1 {[%clk 0:00:05]}  Bc3 {[%clk 0:00:50]} 58. Bc4 {[%clk 0:00:04]}  Ba4 {[%clk 0:00:51]} 59. Ba6 {[%clk 0:00:03]}  Bd4 {[%clk 0:00:47]} 60. Bc4 {[%clk 0:00:02]}  Ke2 {[%clk 0:00:47]} 61. Ba6 {[%clk 0:00:01]}  Kf3 {[%clk 0:00:48]} 62. Bc4 {[%clk 0:00:01]}  Kg4 {[%clk 0:00:47]} 63. Ba6 {[%clk 0:00:02]}  Kg5 {[%clk 0:00:47]} 64. Bc4 {[%clk 0:00:03]}  Kf6 {[%clk 0:00:48]} 65. Ba6 {[%clk 0:00:04]}  Ke6 {[%clk 0:00:48]} 66. Bc4+ {[%clk 0:00:05]}  Kd6 {[%clk 0:00:49]} 67. Kb1 {[%clk 0:00:04]}  Kc5 {[%clk 0:00:49]} 68. Kc1 {[%clk 0:00:05]}  Bb5 {[%clk 0:00:49]} 69. Bd5 {[%clk 0:00:03]}  Bxd3 {[%clk 0:00:49]} 70. Kd1 {[%clk 0:00:03]}  Bc4 {[%clk 0:00:49]} 71. Ba8 {[%clk 0:00:03]}  Bb5 {[%clk 0:00:49]} 0-1


[Site "https://www.chess.com"]

[Event "Titled Tuesday Blitz November 15 Early 2022"]
[White "Korchmar, Vasiliy"]
[Black "Manelyuk, Daniil"]
[WhiteFideId "24131750"]
[BlackFideId "44173920"]
[WhiteElo "2737"]
[BlackElo "2570"]
[Result "1-0"]
[Round "10"]
[TimeControl "180+1"]
[Date "2022.11.16"]
[WhiteClock "0:00:11"]
[BlackClock "0:00:05"]

1. e4 {[%clk 0:03:00]}  e6 {[%clk 0:02:58]} 2. d4 {[%clk 0:03:00]}  d5 {[%clk 0:02:58]} 3. e5 {[%clk 0:03:01]}  c5 {[%clk 0:02:57]} 4. c3 {[%clk 0:03:02]}  Nc6 {[%clk 0:02:58]} 5. Nf3 {[%clk 0:03:02]}  Qb6 {[%clk 0:02:58]} 6. Be2 {[%clk 0:03:02]}  Bd7 {[%clk 0:02:58]} 7. O-O {[%clk 0:03:01]}  Nh6 {[%clk 0:02:56]} 8. Bxh6 {[%clk 0:03:00]}  gxh6 {[%clk 0:02:56]} 9. Qd2 {[%clk 0:02:52]}  Bg7 {[%clk 0:02:53]} 10. Na3 {[%clk 0:02:46]}  O-O {[%clk 0:02:50]} 11. Nc2 {[%clk 0:01:58]}  f6 {[%clk 0:02:41]} 12. exf6 {[%clk 0:01:59]}  Rxf6 {[%clk 0:02:36]} 13. Ne3 {[%clk 0:01:57]}  Raf8 {[%clk 0:02:30]} 14. Ng4 {[%clk 0:01:44]}  Rf4 {[%clk 0:02:29]} 15. Nge5 {[%clk 0:01:33]}  Nxe5 {[%clk 0:02:28]} 16. Nxe5 {[%clk 0:01:34]}  Bxe5 {[%clk 0:02:26]} 17. dxe5 {[%clk 0:01:35]}  Bb5 {[%clk 0:02:16]} 18. Bxb5 {[%clk 0:01:24]}  Qxb5 {[%clk 0:02:14]} 19. g3 {[%clk 0:01:25]}  Re4 {[%clk 0:02:08]} 20. Qxh6 {[%clk 0:01:21]}  Rxe5 {[%clk 0:02:04]} 21. Rae1 {[%clk 0:01:22]}  Rxe1 {[%clk 0:01:54]} 22. Rxe1 {[%clk 0:01:23]}  Qxb2 {[%clk 0:01:54]} 23. Qxe6+ {[%clk 0:01:18]}  Kh8 {[%clk 0:01:53]} 24. Qe5+ {[%clk 0:01:16]}  Kg8 {[%clk 0:01:52]} 25. Qxd5+ {[%clk 0:01:17]}  Kh8 {[%clk 0:01:50]} 26. Qe5+ {[%clk 0:01:17]}  Kg8 {[%clk 0:01:50]} 27. Qxc5 {[%clk 0:01:18]}  Qxa2 {[%clk 0:01:46]} 28. Re7 {[%clk 0:01:14]}  Qb1+ {[%clk 0:01:33]} 29. Kg2 {[%clk 0:01:13]}  Qg6 {[%clk 0:00:48]} 30. Qd5+ {[%clk 0:01:05]}  Kh8 {[%clk 0:00:48]} 31. Rxb7 {[%clk 0:01:02]}  a6 {[%clk 0:00:46]} 32. Ra7 {[%clk 0:00:46]}  Qb6 {[%clk 0:00:18]} 33. Qe5+ {[%clk 0:00:38]}  Qf6 {[%clk 0:00:18]} 34. Qxf6+ {[%clk 0:00:34]}  Rxf6 {[%clk 0:00:18]} 35. c4 {[%clk 0:00:34]}  Rc6 {[%clk 0:00:19]} 36. c5 {[%clk 0:00:32]}  Rxc5 {[%clk 0:00:19]} 37. Rxa6 {[%clk 0:00:32]}  Kg7 {[%clk 0:00:19]} 38. h3 {[%clk 0:00:31]}  Rc2 {[%clk 0:00:19]} 39. g4 {[%clk 0:00:31]}  h6 {[%clk 0:00:18]} 40. Kg3 {[%clk 0:00:31]}  Rc3+ {[%clk 0:00:18]} 41. f3 {[%clk 0:00:31]}  Rc4 {[%clk 0:00:18]} 42. f4 {[%clk 0:00:30]}  Rc3+ {[%clk 0:00:17]} 43. Kh4 {[%clk 0:00:30]}  Rc4 {[%clk 0:00:17]} 44. Ra7+ {[%clk 0:00:26]}  Kf6 {[%clk 0:00:13]} 45. Ra6+ {[%clk 0:00:25]}  Kg7 {[%clk 0:00:13]} 46. f5 {[%clk 0:00:26]}  Rc3 {[%clk 0:00:13]} 47. Ra7+ {[%clk 0:00:21]}  Kf6 {[%clk 0:00:12]} 48. Rh7 {[%clk 0:00:20]}  Ke5 {[%clk 0:00:09]} 49. Rxh6 {[%clk 0:00:19]}  Kf4 {[%clk 0:00:09]} 50. f6 {[%clk 0:00:19]}  Rc7 {[%clk 0:00:09]} 51. Kh5 {[%clk 0:00:16]}  Ke5 {[%clk 0:00:07]} 52. Kg6 {[%clk 0:00:14]}  Ke6 {[%clk 0:00:07]} 53. g5 {[%clk 0:00:15]}  Rc8 {[%clk 0:00:05]} 54. Rh7 {[%clk 0:00:15]}  Rg8+ {[%clk 0:00:06]} 55. Rg7 {[%clk 0:00:15]}  Rh8 {[%clk 0:00:06]} 56. Re7+ {[%clk 0:00:15]}  Kd6 {[%clk 0:00:06]} 57. Re3 {[%clk 0:00:14]}  Rg8+ {[%clk 0:00:06]} 58. Kf5 {[%clk 0:00:14]}  Rh8 {[%clk 0:00:05]} 59. f7 {[%clk 0:00:14]}  Rf8 {[%clk 0:00:04]} 60. g6 {[%clk 0:00:14]}  Ra8 {[%clk 0:00:04]} 61. g7 {[%clk 0:00:13]}  Ra5+ {[%clk 0:00:04]} 62. Kf6 {[%clk 0:00:13]}  Ra6 {[%clk 0:00:05]} 63. f8=Q+ {[%clk 0:00:13]}  Kd5+ {[%clk 0:00:05]} 64. Kf5 {[%clk 0:00:12]}  Rc6 {[%clk 0:00:05]} 65. Qd8+ {[%clk 0:00:11]}  Kc5 {[%clk 0:00:05]} 66. Rc3+ {[%clk 0:00:11]}  Kb4 {[%clk 0:00:04]} 67. Rxc6 {[%clk 0:00:11]}  Kb5 {[%clk 0:00:05]} 68. Qb6+ {[%clk 0:00:10]}  Ka4 {[%clk 0:00:05]} 69. Rc1 {[%clk 0:00:10]}  Ka3 {[%clk 0:00:05]} 70. Ra1# {[%clk 0:00:11]} 1-0


[Site "https://www.chess.com"]

[Event "Titled Tuesday Blitz November 15 Early 2022"]
[White "Kostiukov, Alexandr"]
[Black "Kiseljova, Marya"]
[WhiteFideId "14108100"]
[BlackFideId "4155009"]
[WhiteElo "2202"]
[BlackElo "1907"]
[Result "1-0"]
[Round "10"]
[TimeControl "180+1"]
[Date "2022.11.16"]
[WhiteClock "0:00:32"]
[BlackClock "0:00:02"]

1. g3 {[%clk 0:03:00]}  d5 {[%clk 0:02:59]} 2. Bg2 {[%clk 0:03:01]}  Nf6 {[%clk 0:02:56]} 3. d3 {[%clk 0:03:01]}  c6 {[%clk 0:02:54]} 4. e4 {[%clk 0:03:01]}  e5 {[%clk 0:02:49]} 5. Qe2 {[%clk 0:03:00]}  dxe4 {[%clk 0:02:42]} 6. dxe4 {[%clk 0:02:59]}  Nbd7 {[%clk 0:02:38]} 7. Nf3 {[%clk 0:02:59]}  Be7 {[%clk 0:02:37]} 8. O-O {[%clk 0:02:59]}  O-O {[%clk 0:02:37]} 9. b3 {[%clk 0:02:57]}  Qc7 {[%clk 0:02:35]} 10. Bb2 {[%clk 0:02:56]}  Re8 {[%clk 0:02:36]} 11. Nbd2 {[%clk 0:02:56]}  b5 {[%clk 0:02:32]} 12. a4 {[%clk 0:02:55]}  Rb8 {[%clk 0:02:27]} 13. h3 {[%clk 0:02:52]}  a6 {[%clk 0:02:25]} 14. Nh4 {[%clk 0:02:48]}  Nc5 {[%clk 0:02:15]} 15. axb5 {[%clk 0:02:45]}  axb5 {[%clk 0:02:14]} 16. Nf5 {[%clk 0:02:42]}  Bf8 {[%clk 0:02:04]} 17. Qe3 {[%clk 0:02:34]}  Ne6 {[%clk 0:01:59]} 18. Nf3 {[%clk 0:02:30]}  Nd7 {[%clk 0:01:42]} 19. Rfd1 {[%clk 0:02:22]}  Bc5 {[%clk 0:01:42]} 20. Qd2 {[%clk 0:02:07]}  f6 {[%clk 0:01:23]} 21. Nd6 {[%clk 0:02:00]}  Rd8 {[%clk 0:01:13]} 22. Nxc8 {[%clk 0:01:54]}  Rbxc8 {[%clk 0:01:09]} 23. Qe2 {[%clk 0:01:48]}  Ndf8 {[%clk 0:01:01]} 24. h4 {[%clk 0:01:47]}  Qb6 {[%clk 0:00:38]} 25. Bh3 {[%clk 0:01:44]}  Ra8 {[%clk 0:00:33]} 26. Kg2 {[%clk 0:01:32]}  Rxa1 {[%clk 0:00:33]} 27. Rxa1 {[%clk 0:01:27]}  Nd4 {[%clk 0:00:33]} 28. Nxd4 {[%clk 0:01:24]}  Bxd4 {[%clk 0:00:34]} 29. c3 {[%clk 0:01:20]}  Bc5 {[%clk 0:00:34]} 30. b4 {[%clk 0:01:18]}  Bd6 {[%clk 0:00:32]} 31. Bc1 {[%clk 0:01:18]}  Bc7 {[%clk 0:00:30]} 32. Be3 {[%clk 0:01:18]}  Qb8 {[%clk 0:00:30]} 33. Ra6 {[%clk 0:01:07]}  Rd6 {[%clk 0:00:27]} 34. Bc5 {[%clk 0:01:04]}  Rd8 {[%clk 0:00:25]} 35. Qa2+ {[%clk 0:00:47]}  Kh8 {[%clk 0:00:24]} 36. Rxc6 {[%clk 0:00:46]}  Qb7 {[%clk 0:00:14]} 37. Qa6 {[%clk 0:00:42]}  Qxa6 {[%clk 0:00:13]} 38. Rxa6 {[%clk 0:00:43]}  Ng6 {[%clk 0:00:12]} 39. Ra7 {[%clk 0:00:41]}  Bb8 {[%clk 0:00:10]} 40. Ra8 {[%clk 0:00:41]}  Kg8 {[%clk 0:00:10]} 41. h5 {[%clk 0:00:41]}  Nf8 {[%clk 0:00:09]} 42. Kf3 {[%clk 0:00:38]}  Kf7 {[%clk 0:00:09]} 43. Bf1 {[%clk 0:00:36]}  Ne6 {[%clk 0:00:08]} 44. Bxb5 {[%clk 0:00:36]}  Nxc5 {[%clk 0:00:07]} 45. bxc5 {[%clk 0:00:36]}  Rc8 {[%clk 0:00:06]} 46. c6 {[%clk 0:00:34]}  Rd8 {[%clk 0:00:05]} 47. Bc4+ {[%clk 0:00:32]}  Ke7 {[%clk 0:00:04]} 48. Bd5 {[%clk 0:00:33]}  Kd6 {[%clk 0:00:03]} 49. c4 {[%clk 0:00:33]}  Kc7 {[%clk 0:00:03]} 50. Ra5 {[%clk 0:00:32]}  Kb6 {[%clk 0:00:03]} 51. Rb5+ {[%clk 0:00:31]}  Kc7 {[%clk 0:00:03]} 52. Rb7+ {[%clk 0:00:32]}  Kc8 {[%clk 0:00:03]} 53. Be6+ {[%clk 0:00:32]}  Rd7 {[%clk 0:00:01]} 54. Bxd7+ {[%clk 0:00:32]}  Kd8 {[%clk 0:00:02]} 55. Rxb8+ {[%clk 0:00:32]}  Kc7 {[%clk 0:00:02]} 56. Rb7+ {[%clk 0:00:32]} 1-0


[Site "https://www.chess.com"]